[Event "Titled Tuesday Blitz April 11 Early 2023"]
[White "Ronka, Erik"]
[Black "Perez Gormaz, Matias"]
[WhiteFideId "505080"]
[BlackFideId "3406342"]
[WhiteElo "2264"]
[BlackElo "2362"]
[Result "1-0"]
[Round "04"]
[TimeControl "180+2"]
[Date "2023.04.11"]
[WhiteClock "0:00:06"]
[BlackClock "0:00:05"]

1. a3 {[%clk 0:03:00]}  d5 {[%clk 0:02:59]} 2. c4 {[%clk 0:02:37]}  e6 {[%clk 0:02:40]} 3. Nf3 {[%clk 0:02:18]}  Nf6 {[%clk 0:02:35]} 4. e3 {[%clk 0:02:10]}  Bd6 {[%clk 0:02:30]} 5. g4 {[%clk 0:02:03]}  h6 {[%clk 0:02:12]} 6. Rg1 {[%clk 0:02:01]}  b6 {[%clk 0:02:02]} 7. Nc3 {[%clk 0:01:54]}  Bb7 {[%clk 0:02:01]} 8. b3 {[%clk 0:01:50]}  Nbd7 {[%clk 0:02:00]} 9. Bb2 {[%clk 0:01:49]}  a6 {[%clk 0:01:58]} 10. Qc2 {[%clk 0:01:45]}  Qe7 {[%clk 0:01:58]} 11. Be2 {[%clk 0:01:40]}  c5 {[%clk 0:01:47]} 12. O-O-O {[%clk 0:01:27]}  O-O-O {[%clk 0:01:24]} 13. h4 {[%clk 0:01:16]}  Kb8 {[%clk 0:01:02]} 14. g5 {[%clk 0:01:15]}  hxg5 {[%clk 0:01:03]} 15. hxg5 {[%clk 0:01:16]}  Ne4 {[%clk 0:01:00]} 16. Nxe4 {[%clk 0:01:15]}  dxe4 {[%clk 0:01:00]} 17. Ne1 {[%clk 0:01:14]}  Rh2 {[%clk 0:00:57]} 18. Bxg7 {[%clk 0:01:02]}  Rxf2 {[%clk 0:00:56]} 19. Bh5 {[%clk 0:00:59]}  Rg8 {[%clk 0:00:52]} 20. Bf6 {[%clk 0:00:56]}  Nxf6 {[%clk 0:00:45]} 21. gxf6 {[%clk 0:00:57]}  Qf8 {[%clk 0:00:46]} 22. Rxg8 {[%clk 0:00:45]}  Qxg8 {[%clk 0:00:46]} 23. Qc3 {[%clk 0:00:46]}  Ka7 {[%clk 0:00:37]} 24. Nc2 {[%clk 0:00:41]}  Qg5 {[%clk 0:00:31]} 25. Bxf7 {[%clk 0:00:40]}  Be5 {[%clk 0:00:30]} 26. d4 {[%clk 0:00:37]}  Bxf6 {[%clk 0:00:20]} 27. Rd2 {[%clk 0:00:36]}  Rf1+ {[%clk 0:00:19]} 28. Kb2 {[%clk 0:00:36]}  Qg1 {[%clk 0:00:15]} 29. Bxe6 {[%clk 0:00:36]}  Rf3 {[%clk 0:00:09]} 30. Bd5 {[%clk 0:00:30]}  Bxd5 {[%clk 0:00:07]} 31. cxd5 {[%clk 0:00:31]}  Qg5 {[%clk 0:00:08]} 32. b4 {[%clk 0:00:27]}  Qxd5 {[%clk 0:00:08]} 33. bxc5 {[%clk 0:00:23]}  bxc5 {[%clk 0:00:09]} 34. Nb4 {[%clk 0:00:23]}  cxb4 {[%clk 0:00:08]} 35. Qc7+ {[%clk 0:00:23]}  Qb7 {[%clk 0:00:09]} 36. Qc5+ {[%clk 0:00:24]}  Ka8 {[%clk 0:00:09]} 37. Qf8+ {[%clk 0:00:22]}  Qb8 {[%clk 0:00:09]} 38. Qc5 {[%clk 0:00:12]}  bxa3+ {[%clk 0:00:07]} 39. Ka2 {[%clk 0:00:13]}  Rxe3 {[%clk 0:00:03]} 40. Qc6+ {[%clk 0:00:12]}  Qb7 {[%clk 0:00:04]} 41. Qe8+ {[%clk 0:00:10]}  Ka7 {[%clk 0:00:04]} 42. Qe6 {[%clk 0:00:09]}  Rd3 {[%clk 0:00:03]} 43. Rc2 {[%clk 0:00:07]}  Bxd4 {[%clk 0:00:02]} 44. Qc4 {[%clk 0:00:06]}  Rc3 {[%clk 0:00:02]} 45. Qxd4+ {[%clk 0:00:02]}  Ka8 {[%clk 0:00:01]} 46. Qxc3 {[%clk 0:00:03]}  e3 {[%clk 0:00:01]} 47. Qc8+ {[%clk 0:00:03]}  Qxc8 {[%clk 0:00:02]} 48. Rxc8+ {[%clk 0:00:03]}  Kb7 {[%clk 0:00:03]} 49. Re8 {[%clk 0:00:04]}  Kc6 {[%clk 0:00:03]} 50. Rxe3 {[%clk 0:00:04]}  Kd5 {[%clk 0:00:04]} 51. Rxa3 {[%clk 0:00:05]}  Kc4 {[%clk 0:00:05]} 52. Rb3 {[%clk 0:00:06]} 1-0


[Site "https://www.chess.com"]

[Event "Titled Tuesday Blitz April 11 Early 2023"]
[White "Tarasova, Viktoriya"]
[Black "Safin, Robert"]
[WhiteFideId "4175840"]
[BlackFideId "34189120"]
[WhiteElo "2182"]
[BlackElo "2245"]
[Result "1-0"]
[Round "04"]
[TimeControl "180+2"]
[Date "2023.04.11"]
[WhiteClock "0:01:06"]
[BlackClock "0:00:01"]

1. d4 {[%clk 0:03:00]}  Nf6 {[%clk 0:02:59]} 2. c4 {[%clk 0:03:01]}  e6 {[%clk 0:02:57]} 3. Nc3 {[%clk 0:03:01]}  Bb4 {[%clk 0:02:57]} 4. Nf3 {[%clk 0:03:01]}  c5 {[%clk 0:02:51]} 5. g3 {[%clk 0:03:01]}  cxd4 {[%clk 0:02:27]} 6. Nxd4 {[%clk 0:03:01]}  d5 {[%clk 0:02:26]} 7. cxd5 {[%clk 0:02:53]}  Bxc3+ {[%clk 0:02:19]} 8. bxc3 {[%clk 0:02:52]}  Qxd5 {[%clk 0:02:09]} 9. f3 {[%clk 0:02:46]}  O-O {[%clk 0:01:35]} 10. Qb3 {[%clk 0:02:37]}  Rd8 {[%clk 0:01:25]} 11. Qxd5 {[%clk 0:02:34]}  Nxd5 {[%clk 0:01:26]} 12. Bd2 {[%clk 0:02:32]}  e5 {[%clk 0:01:18]} 13. Nb3 {[%clk 0:02:30]}  Nc6 {[%clk 0:01:05]} 14. e4 {[%clk 0:02:29]}  Nb6 {[%clk 0:00:59]} 15. Be3 {[%clk 0:02:09]}  Na4 {[%clk 0:00:32]} 16. Rc1 {[%clk 0:02:05]}  Be6 {[%clk 0:00:30]} 17. Bb5 {[%clk 0:01:58]}  Nb2 {[%clk 0:00:29]} 18. Nc5 {[%clk 0:01:35]}  Bc4 {[%clk 0:00:23]} 19. Bxc4 {[%clk 0:01:25]}  Nxc4 {[%clk 0:00:23]} 20. Ke2 {[%clk 0:01:25]}  b6 {[%clk 0:00:21]} 21. Nb3 {[%clk 0:01:24]}  Kf8 {[%clk 0:00:09]} 22. Rhd1 {[%clk 0:01:24]}  Ke8 {[%clk 0:00:08]} 23. Rxd8+ {[%clk 0:01:23]}  Rxd8 {[%clk 0:00:07]} 24. Bf2 {[%clk 0:01:16]}  Rc8 {[%clk 0:00:06]} 25. Rd1 {[%clk 0:01:14]}  f6 {[%clk 0:00:04]} 26. f4 {[%clk 0:01:13]}  Ke7 {[%clk 0:00:01]} 27. Rd5 {[%clk 0:01:09]}  Ke6 {[%clk 0:00:01]} 28. h4 {[%clk 0:01:06]} 1-0


[Site "https://www.chess.com"]

[Event "Titled Tuesday Blitz April 11 Early 2023"]
[White "Krzywda, Andrzej"]
[Black "Vlassov, Nikolai"]
[WhiteFideId "1114565"]
[BlackFideId "4103360"]
[WhiteElo "2155"]
[BlackElo "2324"]
[Result "0-1"]
[Round "04"]
[TimeControl "180+2"]
[Date "2023.04.11"]
[WhiteClock "0:00:02"]
[BlackClock "0:00:11"]

1. e4 {[%clk 0:03:00]}  Nc6 {[%clk 0:02:59]} 2. Nf3 {[%clk 0:02:59]}  d5 {[%clk 0:02:59]} 3. exd5 {[%clk 0:02:55]}  Qxd5 {[%clk 0:02:59]} 4. Nc3 {[%clk 0:02:54]}  Qa5 {[%clk 0:02:59]} 5. d4 {[%clk 0:02:54]}  Bg4 {[%clk 0:02:59]} 6. h3 {[%clk 0:02:54]}  Bxf3 {[%clk 0:02:58]} 7. Qxf3 {[%clk 0:02:54]}  O-O-O {[%clk 0:02:58]} 8. d5 {[%clk 0:02:35]}  Nb4 {[%clk 0:02:55]} 9. Bd3 {[%clk 0:02:23]}  Nf6 {[%clk 0:02:54]} 10. O-O {[%clk 0:02:08]}  Nbxd5 {[%clk 0:02:51]} 11. Nxd5 {[%clk 0:02:06]}  Qxd5 {[%clk 0:02:51]} 12. Qxd5 {[%clk 0:02:01]}  Nxd5 {[%clk 0:02:50]} 13. a3 {[%clk 0:01:48]}  e6 {[%clk 0:02:48]} 14. Be4 {[%clk 0:01:39]}  Be7 {[%clk 0:02:46]} 15. Re1 {[%clk 0:01:19]}  Bf6 {[%clk 0:02:43]} 16. c3 {[%clk 0:01:19]}  Nb6 {[%clk 0:02:38]} 17. a4 {[%clk 0:01:14]}  Nc4 {[%clk 0:02:26]} 18. a5 {[%clk 0:01:11]}  a6 {[%clk 0:02:21]} 19. Bf3 {[%clk 0:01:11]}  Rd7 {[%clk 0:02:13]} 20. Re4 {[%clk 0:01:04]}  Ne5 {[%clk 0:02:09]} 21. Be2 {[%clk 0:01:04]}  Rhd8 {[%clk 0:02:06]} 22. Be3 {[%clk 0:00:59]}  Nd3 {[%clk 0:01:58]} 23. Rb1 {[%clk 0:00:51]}  Rd5 {[%clk 0:01:52]} 24. Ra4 {[%clk 0:00:49]}  Nc5 {[%clk 0:01:32]} 25. Rb4 {[%clk 0:00:39]}  Nd3 {[%clk 0:01:16]} 26. Ra4 {[%clk 0:00:38]}  h6 {[%clk 0:01:09]} 27. Bf3 {[%clk 0:00:38]}  R5d7 {[%clk 0:01:05]} 28. Kf1 {[%clk 0:00:32]}  Bg5 {[%clk 0:01:01]} 29. Bxg5 {[%clk 0:00:26]}  hxg5 {[%clk 0:01:01]} 30. Be2 {[%clk 0:00:20]}  Nf4 {[%clk 0:00:58]} 31. Bf3 {[%clk 0:00:19]}  Rd2 {[%clk 0:00:52]} 32. h4 {[%clk 0:00:19]}  Nd3 {[%clk 0:00:46]} 33. Kg1 {[%clk 0:00:14]}  gxh4 {[%clk 0:00:42]} 34. b4 {[%clk 0:00:10]}  c6 {[%clk 0:00:35]} 35. c4 {[%clk 0:00:08]}  Ne5 {[%clk 0:00:29]} 36. b5 {[%clk 0:00:09]}  Nxf3+ {[%clk 0:00:28]} 37. gxf3 {[%clk 0:00:09]}  cxb5 {[%clk 0:00:26]} 38. cxb5 {[%clk 0:00:09]}  axb5 {[%clk 0:00:20]} 39. Rxb5 {[%clk 0:00:09]}  R8d5 {[%clk 0:00:20]} 40. Rc4+ {[%clk 0:00:03]}  Kb8 {[%clk 0:00:19]} 41. Rb1 {[%clk 0:00:02]}  Rxa5 {[%clk 0:00:17]} 42. Rxh4 {[%clk 0:00:02]}  Raa2 {[%clk 0:00:12]} 43. Rhb4 {[%clk 0:00:02]}  Rd7 {[%clk 0:00:12]} 44. Rb6 {[%clk 0:00:02]}  g6 {[%clk 0:00:12]} 45. Kg2 {[%clk 0:00:02]}  Kc8 {[%clk 0:00:13]} 46. Kg3 {[%clk 0:00:03]}  Rc2 {[%clk 0:00:13]} 47. Rh1 {[%clk 0:00:02]}  Rc6 {[%clk 0:00:12]} 48. Rb4 {[%clk 0:00:02]}  Kc7 {[%clk 0:00:12]} 49. Rh7 {[%clk 0:00:02]}  Rc5 {[%clk 0:00:12]} 50. Re4 {[%clk 0:00:02]}  b5 {[%clk 0:00:12]} 51. Rb4 {[%clk 0:00:02]}  Kc6 {[%clk 0:00:12]} 52. Rh1 {[%clk 0:00:03]}  Rg5+ {[%clk 0:00:12]} 53. Kf4 {[%clk 0:00:03]}  Rc5 {[%clk 0:00:12]} 54. Rhb1 {[%clk 0:00:03]}  Rc4+ {[%clk 0:00:11]} 55. Kg3 {[%clk 0:00:02]}  Rxb4 {[%clk 0:00:11]} 56. Rxb4 {[%clk 0:00:03]}  Kc5 {[%clk 0:00:12]} 57. Rb1 {[%clk 0:00:02]}  Rb7 {[%clk 0:00:11]} 58. Kf4 {[%clk 0:00:02]}  b4 {[%clk 0:00:11]} 59. Ke5 {[%clk 0:00:02]}  b3 {[%clk 0:00:11]} 60. Rc1+ {[%clk 0:00:02]}  Kb4 {[%clk 0:00:11]} 61. Kd4 {[%clk 0:00:03]}  b2 {[%clk 0:00:11]} 62. Rb1 {[%clk 0:00:03]}  Kb3 {[%clk 0:00:12]} 63. Kd3 {[%clk 0:00:03]}  Ka2 {[%clk 0:00:12]} 64. Rh1 {[%clk 0:00:02]}  b1=Q+ {[%clk 0:00:11]} 0-1


[Site "https://www.chess.com"]

[Event "Titled Tuesday Blitz April 11 Early 2023"]
[White "Melian, Juan Sebastian"]
[Black "Valle Maytin, Luis Enrique"]
[WhiteFideId "3706575"]
[BlackFideId "3503666"]
[WhiteElo "2035"]
[BlackElo "2225"]
[Result "1-0"]
[Round "04"]
[TimeControl "180+2"]
[Date "2023.04.11"]
[WhiteClock "0:00:32"]
[BlackClock "0:00:23"]

1. d4 {[%clk 0:03:00]}  d5 {[%clk 0:02:56]} 2. Nf3 {[%clk 0:02:56]}  Nf6 {[%clk 0:02:55]} 3. Bg5 {[%clk 0:02:54]}  e6 {[%clk 0:02:54]} 4. Nbd2 {[%clk 0:02:54]}  h6 {[%clk 0:02:55]} 5. Bh4 {[%clk 0:02:53]}  Be7 {[%clk 0:02:54]} 6. e3 {[%clk 0:02:54]}  O-O {[%clk 0:02:54]} 7. Bd3 {[%clk 0:02:54]}  c5 {[%clk 0:02:52]} 8. c3 {[%clk 0:02:54]}  cxd4 {[%clk 0:02:52]} 9. exd4 {[%clk 0:02:55]}  b6 {[%clk 0:02:49]} 10. Qe2 {[%clk 0:02:46]}  a5 {[%clk 0:02:48]} 11. Ne5 {[%clk 0:02:41]}  Nfd7 {[%clk 0:02:37]} 12. Bxe7 {[%clk 0:02:32]}  Qxe7 {[%clk 0:02:37]} 13. f4 {[%clk 0:02:31]}  Ba6 {[%clk 0:02:26]} 14. O-O {[%clk 0:02:14]}  Bxd3 {[%clk 0:02:25]} 15. Nxd3 {[%clk 0:02:12]}  f5 {[%clk 0:02:02]} 16. Rae1 {[%clk 0:02:10]}  Re8 {[%clk 0:02:01]} 17. Kh1 {[%clk 0:02:02]}  Nf6 {[%clk 0:01:57]} 18. Ne5 {[%clk 0:02:00]}  Nbd7 {[%clk 0:01:52]} 19. Qf3 {[%clk 0:01:53]}  b5 {[%clk 0:01:33]} 20. Qd3 {[%clk 0:01:40]}  Rab8 {[%clk 0:01:27]} 21. Rc1 {[%clk 0:01:28]}  Nxe5 {[%clk 0:01:25]} 22. fxe5 {[%clk 0:01:18]}  Ne4 {[%clk 0:01:25]} 23. Nxe4 {[%clk 0:01:15]}  fxe4 {[%clk 0:01:25]} 24. Qe2 {[%clk 0:01:11]}  Rf8 {[%clk 0:01:16]} 25. Rxf8+ {[%clk 0:01:10]}  Qxf8 {[%clk 0:01:15]} 26. Rf1 {[%clk 0:01:10]}  Qe7 {[%clk 0:01:15]} 27. Kg1 {[%clk 0:01:08]}  Kh7 {[%clk 0:01:11]} 28. Qg4 {[%clk 0:01:05]}  b4 {[%clk 0:00:56]} 29. c4 {[%clk 0:01:05]}  dxc4 {[%clk 0:00:56]} 30. Qxe4+ {[%clk 0:01:05]}  Kg8 {[%clk 0:00:55]} 31. d5 {[%clk 0:01:05]}  exd5 {[%clk 0:00:53]} 32. Qxd5+ {[%clk 0:01:05]}  Kh8 {[%clk 0:00:53]} 33. e6 {[%clk 0:00:59]}  c3 {[%clk 0:00:48]} 34. bxc3 {[%clk 0:00:41]}  bxc3 {[%clk 0:00:48]} 35. Qe5 {[%clk 0:00:40]}  c2 {[%clk 0:00:40]} 36. Qxb8+ {[%clk 0:00:39]}  Kh7 {[%clk 0:00:39]} 37. Qc8 {[%clk 0:00:33]}  Qa7+ {[%clk 0:00:36]} 38. Kh1 {[%clk 0:00:33]}  Qf2 {[%clk 0:00:23]} 39. Rxf2 {[%clk 0:00:32]} 1-0


[Site "https://www.chess.com"]

[Event "Titled Tuesday Blitz April 11 Early 2023"]
[White "Adelman, Charles"]
[Black "Krstulovic, Alex"]
[WhiteFideId "2003597"]
[BlackFideId "760056"]
[WhiteElo "2391"]
[BlackElo "2311"]
[Result "1/2-1/2"]
[Round "04"]
[TimeControl "180+2"]
[Date "2023.04.11"]
[WhiteClock "0:00:24"]
[BlackClock "0:01:48"]

1. Nf3 {[%clk 0:03:00]}  c6 {[%clk 0:03:00]} 2. b3 {[%clk 0:03:00]}  d5 {[%clk 0:03:01]} 3. c4 {[%clk 0:03:00]}  Nf6 {[%clk 0:03:01]} 4. Bb2 {[%clk 0:03:01]}  Bf5 {[%clk 0:03:02]} 5. g3 {[%clk 0:03:01]}  e6 {[%clk 0:03:02]} 6. Bg2 {[%clk 0:03:02]}  Be7 {[%clk 0:03:02]} 7. O-O {[%clk 0:03:02]}  O-O {[%clk 0:03:03]} 8. d3 {[%clk 0:03:03]}  Nbd7 {[%clk 0:03:03]} 9. Nbd2 {[%clk 0:03:03]}  a5 {[%clk 0:03:04]} 10. a3 {[%clk 0:03:03]}  Bd6 {[%clk 0:03:04]} 11. Qc2 {[%clk 0:03:00]}  Bg6 {[%clk 0:03:03]} 12. Rfe1 {[%clk 0:02:53]}  Qe7 {[%clk 0:02:59]} 13. Nh4 {[%clk 0:02:37]}  Bh5 {[%clk 0:02:58]} 14. h3 {[%clk 0:02:32]}  e5 {[%clk 0:02:48]} 15. Nf5 {[%clk 0:02:30]}  Qe6 {[%clk 0:02:47]} 16. Nxd6 {[%clk 0:02:29]}  Qxd6 {[%clk 0:02:48]} 17. Rac1 {[%clk 0:02:25]}  Bg6 {[%clk 0:02:32]} 18. cxd5 {[%clk 0:02:23]}  Nxd5 {[%clk 0:02:31]} 19. Nc4 {[%clk 0:02:19]}  Qe7 {[%clk 0:02:31]} 20. e4 {[%clk 0:02:13]}  N5b6 {[%clk 0:02:21]} 21. Nxb6 {[%clk 0:02:08]}  Nxb6 {[%clk 0:02:22]} 22. Qc5 {[%clk 0:02:05]}  Qxc5 {[%clk 0:02:22]} 23. Rxc5 {[%clk 0:02:04]}  Nd7 {[%clk 0:02:23]} 24. Rc4 {[%clk 0:02:01]}  c5 {[%clk 0:02:24]} 25. f4 {[%clk 0:01:58]}  f6 {[%clk 0:02:24]} 26. Rec1 {[%clk 0:01:53]}  Bf7 {[%clk 0:02:23]} 27. R4c3 {[%clk 0:01:53]}  b6 {[%clk 0:02:23]} 28. Kf2 {[%clk 0:01:48]}  Rfd8 {[%clk 0:02:23]} 29. Ke3 {[%clk 0:01:48]}  exf4+ {[%clk 0:02:21]} 30. gxf4 {[%clk 0:01:48]}  Nf8 {[%clk 0:02:21]} 31. Rd1 {[%clk 0:01:44]}  Ne6 {[%clk 0:02:21]} 32. Rc2 {[%clk 0:01:33]}  Nd4 {[%clk 0:02:21]} 33. Bxd4 {[%clk 0:01:30]}  cxd4+ {[%clk 0:02:21]} 34. Kd2 {[%clk 0:01:17]}  Bxb3 {[%clk 0:02:22]} 35. Rc6 {[%clk 0:01:14]}  Bxd1 {[%clk 0:02:22]} 36. Kxd1 {[%clk 0:01:14]}  b5 {[%clk 0:02:23]} 37. e5 {[%clk 0:01:13]}  fxe5 {[%clk 0:02:22]} 38. fxe5 {[%clk 0:01:13]}  Rac8 {[%clk 0:02:22]} 39. Rb6 {[%clk 0:01:11]}  Rb8 {[%clk 0:02:23]} 40. Ra6 {[%clk 0:01:10]}  b4 {[%clk 0:02:23]} 41. Rxa5 {[%clk 0:01:04]}  b3 {[%clk 0:02:23]} 42. Kc1 {[%clk 0:01:00]}  b2+ {[%clk 0:02:23]} 43. Kb1 {[%clk 0:01:01]}  Rdc8 {[%clk 0:02:20]} 44. Bd5+ {[%clk 0:00:58]}  Kh8 {[%clk 0:02:20]} 45. Bc4 {[%clk 0:00:59]}  Rf8 {[%clk 0:02:21]} 46. Rb5 {[%clk 0:00:51]}  Rxb5 {[%clk 0:02:21]} 47. Bxb5 {[%clk 0:00:51]}  Rf5 {[%clk 0:02:21]} 48. Kxb2 {[%clk 0:00:47]}  Rxe5 {[%clk 0:02:21]} 49. a4 {[%clk 0:00:48]}  g5 {[%clk 0:02:21]} 50. Kb3 {[%clk 0:00:48]}  Rc5 {[%clk 0:02:21]} 51. Kb4 {[%clk 0:00:47]}  Rc1 {[%clk 0:02:21]} 52. a5 {[%clk 0:00:46]}  h5 {[%clk 0:02:21]} 53. a6 {[%clk 0:00:46]}  Rc7 {[%clk 0:02:16]} 54. Ka5 {[%clk 0:00:45]}  g4 {[%clk 0:02:12]} 55. hxg4 {[%clk 0:00:44]}  hxg4 {[%clk 0:02:13]} 56. Kb6 {[%clk 0:00:43]}  Rc8 {[%clk 0:02:12]} 57. Kb7 {[%clk 0:00:39]}  Rg8 {[%clk 0:01:55]} 58. a7 {[%clk 0:00:32]}  g3 {[%clk 0:01:55]} 59. Bc6 {[%clk 0:00:32]}  Kg7 {[%clk 0:01:41]} 60. a8=Q {[%clk 0:00:30]}  Rxa8 {[%clk 0:01:42]} 61. Kxa8 {[%clk 0:00:30]}  Kf6 {[%clk 0:01:43]} 62. Kb7 {[%clk 0:00:28]}  Ke5 {[%clk 0:01:44]} 63. Be4 {[%clk 0:00:28]}  Kf4 {[%clk 0:01:44]} 64. Kc6 {[%clk 0:00:28]}  Ke3 {[%clk 0:01:44]} 65. Kd5 {[%clk 0:00:25]}  g2 {[%clk 0:01:45]} 66. Bxg2 {[%clk 0:00:25]}  Kxd3 {[%clk 0:01:46]} 67. Bh3 {[%clk 0:00:24]}  Ke3 {[%clk 0:01:47]} 68. Bf5 {[%clk 0:00:24]}  d3 {[%clk 0:01:48]} 69. Bxd3 {[%clk 0:00:24]} 1/2-1/2


[Site "https://www.chess.com"]

[Event "Titled Tuesday Blitz April 11 Early 2023"]
[White "Francisco Guecamburu, Candela Be"]
[Black "Mogirzan, Matei-Valeriu"]
[WhiteFideId "160911"]
[BlackFideId "1257455"]
[WhiteElo "2326"]
[BlackElo "1733"]
[Result "1-0"]
[Round "04"]
[TimeControl "180+2"]
[Date "2023.04.11"]
[WhiteClock "0:01:50"]
[BlackClock "0:02:04"]

1. e4 {[%clk 0:03:00]}  c5 {[%clk 0:02:56]} 2. Nf3 {[%clk 0:03:00]}  e6 {[%clk 0:02:53]} 3. d4 {[%clk 0:03:00]}  cxd4 {[%clk 0:02:54]} 4. Nxd4 {[%clk 0:03:01]}  a6 {[%clk 0:02:54]} 5. Bd3 {[%clk 0:03:01]}  Nc6 {[%clk 0:02:53]} 6. Nxc6 {[%clk 0:02:57]}  bxc6 {[%clk 0:02:54]} 7. O-O {[%clk 0:02:56]}  d5 {[%clk 0:02:54]} 8. c4 {[%clk 0:02:56]}  Nf6 {[%clk 0:02:50]} 9. Nc3 {[%clk 0:02:55]}  Bb4 {[%clk 0:02:46]} 10. cxd5 {[%clk 0:02:44]}  exd5 {[%clk 0:02:40]} 11. exd5 {[%clk 0:02:22]}  Nxd5 {[%clk 0:02:26]} 12. Nxd5 {[%clk 0:02:03]}  Qxd5 {[%clk 0:02:27]} 13. Qc2 {[%clk 0:02:01]}  h6 {[%clk 0:02:14]} 14. Be4 {[%clk 0:01:58]}  Qc5 {[%clk 0:02:04]} 15. Bxc6+ {[%clk 0:01:50]} 1-0


[Site "https://www.chess.com"]

[Event "Titled Tuesday Blitz April 11 Early 2023"]
[White "Mayaud, Raphael"]
[Black "Dobre, Claudiu-Cristian"]
[WhiteFideId "627151"]
[BlackFideId "1211854"]
[WhiteElo "2191"]
[BlackElo "2207"]
[Result "1-0"]
[Round "04"]
[TimeControl "180+2"]
[Date "2023.04.11"]
[WhiteClock "0:00:09"]
[BlackClock "0:00:02"]

1. d4 {[%clk 0:02:54]}  f5 {[%clk 0:02:59]} 2. g3 {[%clk 0:02:53]}  g6 {[%clk 0:02:58]} 3. Bg2 {[%clk 0:02:54]}  Bg7 {[%clk 0:02:59]} 4. c4 {[%clk 0:02:50]}  Nf6 {[%clk 0:02:56]} 5. Nc3 {[%clk 0:02:49]}  O-O {[%clk 0:02:53]} 6. Nh3 {[%clk 0:02:49]}  d6 {[%clk 0:02:53]} 7. d5 {[%clk 0:02:48]}  Na6 {[%clk 0:02:24]} 8. O-O {[%clk 0:02:48]}  Nc5 {[%clk 0:02:24]} 9. Nf4 {[%clk 0:02:48]}  e5 {[%clk 0:02:22]} 10. dxe6 {[%clk 0:02:48]}  c6 {[%clk 0:02:23]} 11. Qc2 {[%clk 0:02:44]}  a5 {[%clk 0:02:15]} 12. b3 {[%clk 0:02:44]}  Re8 {[%clk 0:01:57]} 13. Rd1 {[%clk 0:02:42]}  Bxe6 {[%clk 0:01:56]} 14. Nxe6 {[%clk 0:02:28]}  Rxe6 {[%clk 0:01:56]} 15. Bb2 {[%clk 0:02:29]}  Qe7 {[%clk 0:01:47]} 16. e3 {[%clk 0:02:25]}  Nfe4 {[%clk 0:01:41]} 17. Nxe4 {[%clk 0:02:23]}  fxe4 {[%clk 0:01:40]} 18. Bxg7 {[%clk 0:02:22]}  Qxg7 {[%clk 0:01:36]} 19. Rd4 {[%clk 0:02:18]}  Rf8 {[%clk 0:01:34]} 20. Rad1 {[%clk 0:02:15]}  Qf6 {[%clk 0:01:33]} 21. R1d2 {[%clk 0:01:11]}  Qf5 {[%clk 0:01:24]} 22. h3 {[%clk 0:01:02]}  h5 {[%clk 0:01:09]} 23. a3 {[%clk 0:00:51]}  Qe5 {[%clk 0:01:02]} 24. b4 {[%clk 0:00:44]}  axb4 {[%clk 0:00:59]} 25. axb4 {[%clk 0:00:45]}  Nd3 {[%clk 0:00:57]} 26. Rxe4 {[%clk 0:00:34]}  Qa1+ {[%clk 0:00:56]} 27. Rd1 {[%clk 0:00:34]}  Nxb4 {[%clk 0:00:55]} 28. Qb3 {[%clk 0:00:17]}  Qf6 {[%clk 0:00:13]} 29. Rxe6 {[%clk 0:00:16]}  Qxf2+ {[%clk 0:00:09]} 30. Kh2 {[%clk 0:00:17]}  Nc2 {[%clk 0:00:08]} 31. Rf1 {[%clk 0:00:13]}  Qe2 {[%clk 0:00:05]} 32. Rxf8+ {[%clk 0:00:13]}  Kxf8 {[%clk 0:00:05]} 33. c5 {[%clk 0:00:10]}  Ne1 {[%clk 0:00:04]} 34. Rf6+ {[%clk 0:00:09]}  Ke7 {[%clk 0:00:02]} 35. Qe6+ {[%clk 0:00:09]} 1-0


[Site "https://www.chess.com"]

[Event "Titled Tuesday Blitz April 11 Early 2023"]
[White "Karamsetty, Jeevan"]
[Black "Mrudul Dehankar"]
[WhiteFideId "2025337"]
[BlackFideId "25096990"]
[WhiteElo "2111"]
[BlackElo "2139"]
[Result "1-0"]
[Round "04"]
[TimeControl "180+2"]
[Date "2023.04.11"]
[WhiteClock "0:00:09"]
[BlackClock "0:00:01"]

1. e4 {[%clk 0:02:58]}  c6 {[%clk 0:02:56]} 2. d4 {[%clk 0:02:58]}  d5 {[%clk 0:02:53]} 3. exd5 {[%clk 0:02:59]}  cxd5 {[%clk 0:02:51]} 4. Bd3 {[%clk 0:02:59]}  Nc6 {[%clk 0:02:50]} 5. c3 {[%clk 0:02:59]}  Nf6 {[%clk 0:02:50]} 6. Bf4 {[%clk 0:02:58]}  g6 {[%clk 0:02:47]} 7. Nf3 {[%clk 0:02:46]}  Bg7 {[%clk 0:02:44]} 8. O-O {[%clk 0:02:45]}  O-O {[%clk 0:02:42]} 9. Nbd2 {[%clk 0:02:39]}  Bf5 {[%clk 0:02:35]} 10. Bxf5 {[%clk 0:02:18]}  gxf5 {[%clk 0:02:33]} 11. Ne5 {[%clk 0:02:19]}  e6 {[%clk 0:02:07]} 12. Bg5 {[%clk 0:02:01]}  Ne7 {[%clk 0:02:04]} 13. Re1 {[%clk 0:01:38]}  Ne4 {[%clk 0:01:55]} 14. Nxe4 {[%clk 0:01:34]}  fxe4 {[%clk 0:01:50]} 15. Ng4 {[%clk 0:01:22]}  f6 {[%clk 0:01:39]} 16. Nh6+ {[%clk 0:01:15]}  Kh8 {[%clk 0:01:37]} 17. Bd2 {[%clk 0:01:04]}  Qe8 {[%clk 0:01:31]} 18. Qg4 {[%clk 0:00:56]}  f5 {[%clk 0:01:26]} 19. Qh4 {[%clk 0:00:48]}  Ng6 {[%clk 0:01:08]} 20. Qh3 {[%clk 0:00:41]}  Qe7 {[%clk 0:01:05]} 21. f3 {[%clk 0:00:14]}  Qh4 {[%clk 0:00:48]} 22. Qxh4 {[%clk 0:00:13]}  Nxh4 {[%clk 0:00:48]} 23. fxe4 {[%clk 0:00:12]}  dxe4 {[%clk 0:00:46]} 24. Bg5 {[%clk 0:00:12]}  Ng6 {[%clk 0:00:43]} 25. g4 {[%clk 0:00:12]}  Bf6 {[%clk 0:00:30]} 26. Bxf6+ {[%clk 0:00:12]}  Rxf6 {[%clk 0:00:31]} 27. g5 {[%clk 0:00:12]}  Rff8 {[%clk 0:00:31]} 28. Kf2 {[%clk 0:00:12]}  Nf4 {[%clk 0:00:22]} 29. Re2 {[%clk 0:00:09]}  Nxe2 {[%clk 0:00:22]} 30. Kxe2 {[%clk 0:00:09]}  Kg7 {[%clk 0:00:21]} 31. h4 {[%clk 0:00:09]}  Kg6 {[%clk 0:00:22]} 32. Rh1 {[%clk 0:00:09]}  Rae8 {[%clk 0:00:20]} 33. Ke3 {[%clk 0:00:10]}  Kh5 {[%clk 0:00:16]} 34. Kf4 {[%clk 0:00:10]}  Rd8 {[%clk 0:00:13]} 35. Rh2 {[%clk 0:00:09]}  Rd5 {[%clk 0:00:13]} 36. a3 {[%clk 0:00:08]}  a5 {[%clk 0:00:13]} 37. Re2 {[%clk 0:00:07]}  a4 {[%clk 0:00:13]} 38. Rg2 {[%clk 0:00:07]}  Re8 {[%clk 0:00:11]} 39. Re2 {[%clk 0:00:07]}  Rb5 {[%clk 0:00:11]} 40. Nf7 {[%clk 0:00:07]}  Rc8 {[%clk 0:00:10]} 41. Ne5 {[%clk 0:00:07]}  Rc7 {[%clk 0:00:05]} 42. Rg2 {[%clk 0:00:08]}  Rbc5 {[%clk 0:00:02]} 43. dxc5 {[%clk 0:00:07]}  Rxc5 {[%clk 0:00:02]} 44. g6 {[%clk 0:00:07]}  hxg6 {[%clk 0:00:02]} 45. Rg5+ {[%clk 0:00:08]}  Kh6 {[%clk 0:00:03]} 46. Rxg6+ {[%clk 0:00:08]}  Kh7 {[%clk 0:00:04]} 47. Rxe6 {[%clk 0:00:09]}  Rd5 {[%clk 0:00:01]} 48. Kxf5 {[%clk 0:00:09]} 1-0


[Site "https://www.chess.com"]